[Event "*** Titled Tuesday Blitz"]
[Site "Chess.com"]
[Date "2020.11.03"]
[Round "4"]
[White "Varinius"]
[Black "paulrusan"]
[Result "1-0"]
[WhiteElo "2506"]
[BlackElo "2183"]
[TimeControl "180+1"]
[EndTime "10:42:11 PST"]
[Termination "Varinius won on time"]

1. d4 {[%clk 0:03:00.9]} 1... Nf6 {[%clk 0:02:57.6]} 2. Nf3 {[%clk 0:03:01.4]}
2... g6 {[%clk 0:02:57.5]} 3. c4 {[%clk 0:03:01.3]} 3... Bg7 {[%clk 0:02:57.7]}
4. Nc3 {[%clk 0:03:01.9]} 4... O-O {[%clk 0:02:56.6]} 5. e4 {[%clk 0:03:02.1]}
5... d6 {[%clk 0:02:57.1]} 6. h3 {[%clk 0:03:02.7]} 6... e5 {[%clk 0:02:55.9]}
7. dxe5 {[%clk 0:03:03.6]} 7... dxe5 {[%clk 0:02:55.9]} 8. Qxd8 {[%clk
0:03:04.5]} 8... Rxd8 {[%clk 0:02:55.9]} 9. Nd5 {[%clk 0:03:05.2]} 9... Nxd5
{[%clk 0:02:54.4]} 10. cxd5 {[%clk 0:03:06.1]} 10... c6 {[%clk 0:02:54.6]} 11.
Bc4 {[%clk 0:03:04.9]} 11... b5 {[%clk 0:02:53]} 12. Bb3 {[%clk 0:03:03.2]}
12... Bb7 {[%clk 0:02:48.8]} 13. Bg5 {[%clk 0:03:02]} 13... Re8 {[%clk
0:02:48.5]} 14. Rc1 {[%clk 0:02:59.4]} 14... a5 {[%clk 0:02:40.9]} 15. a4 {[%clk
0:02:56]} 15... cxd5 {[%clk 0:02:36.3]} 16. Rc7 {[%clk 0:02:54.3]} 16... Bc6
{[%clk 0:02:11.6]} 17. axb5 {[%clk 0:02:42.9]} 17... a4 {[%clk 0:02:05.5]} 18.
Ba2 {[%clk 0:02:32.9]} 18... a3 {[%clk 0:02:05.4]} 19. bxc6 {[%clk 0:02:27]}
19... axb2 {[%clk 0:02:05.2]} 20. Bb1 {[%clk 0:02:25.7]} 20... dxe4 {[%clk
0:01:57.1]} 21. Nd2 {[%clk 0:02:23.7]} 21... f5 {[%clk 0:01:51.7]} 22. O-O
{[%clk 0:02:18.7]} 22... Ra6 {[%clk 0:01:45]} 23. Rb7 {[%clk 0:02:04.5]} 23...
Nxc6 {[%clk 0:01:40.6]} 24. Rxb2 {[%clk 0:02:03.8]} 24... Nd4 {[%clk 0:01:34.7]}
25. Ba2+ {[%clk 0:01:51.7]} 25... Kh8 {[%clk 0:01:34.2]} 26. Bc4 {[%clk
0:01:35.2]} 26... Rc6 {[%clk 0:01:29.3]} 27. Be3 {[%clk 0:01:33.4]} 27... Rec8
{[%clk 0:01:22.6]} 28. Bd5 {[%clk 0:01:22.4]} 28... Rc2 {[%clk 0:01:17.1]} 29.
Rxc2 {[%clk 0:01:22]} 29... Rxc2 {[%clk 0:01:15.3]} 30. Rb1 {[%clk 0:01:21.9]}
30... Bf8 {[%clk 0:00:54.1]} 31. Nc4 {[%clk 0:01:18.4]} 31... f4 {[%clk
0:00:43.8]} 32. Rb8 {[%clk 0:01:01.5]} 32... fxe3 {[%clk 0:00:39.2]} 33. Rxf8+
{[%clk 0:01:00.4]} 33... Kg7 {[%clk 0:00:39.6]} 34. Rf7+ {[%clk 0:00:59]} 34...
Kh6 {[%clk 0:00:38.9]} 35. fxe3 {[%clk 0:00:58.8]} 35... Ne2+ {[%clk 0:00:35.9]}
36. Kh2 {[%clk 0:00:58.6]} 36... Nc3 {[%clk 0:00:30.6]} 37. Be6 {[%clk
0:00:52.2]} 37... Ne2 {[%clk 0:00:20.2]} 38. Nxe5 {[%clk 0:00:50.8]} 38... Rc3
{[%clk 0:00:12.8]} 39. h4 {[%clk 0:00:49.5]} 39... g5 {[%clk 0:00:07.1]} 40. Bf5
{[%clk 0:00:30.3]} 40... gxh4 {[%clk 0:00:05]} 41. Bxe4 {[%clk 0:00:20.1]} 41...
Ng3 {[%clk 0:00:05.2]} 42. Bf3 {[%clk 0:00:17.8]} 42... Kg5 {[%clk 0:00:01.2]}
43. Ng4 {[%clk 0:00:14.9]} 1-0

[Event "*** Titled Tuesday Blitz"]
[Site "Chess.com"]
[Date "2020.11.03"]
[Round "4"]
[White "Flawless_Fighter"]
[Black "gmmoranda"]
[Result "0-1"]
[WhiteElo "2665"]
[BlackElo "2895"]
[TimeControl "180+1"]
[EndTime "10:42:13 PST"]
[Termination "gmmoranda won by resignation"]

1. d4 {[%clk 0:03:00.9]} 1... Nf6 {[%clk 0:02:59.6]} 2. c4 {[%clk 0:03:00.8]}
2... e6 {[%clk 0:02:59.9]} 3. g3 {[%clk 0:03:01]} 3... d5 {[%clk 0:02:59.7]} 4.
Bg2 {[%clk 0:03:01.2]} 4... dxc4 {[%clk 0:02:59.4]} 5. Nf3 {[%clk 0:03:00.8]}
5... a6 {[%clk 0:02:59.3]} 6. Ne5 {[%clk 0:02:54.3]} 6... Bb4+ {[%clk
0:02:58.8]} 7. Bd2 {[%clk 0:02:53.6]} 7... Qxd4 {[%clk 0:02:54.3]} 8. Bxb4
{[%clk 0:02:46]} 8... Qxe5 {[%clk 0:02:54]} 9. O-O {[%clk 0:02:43.3]} 9... Nc6
{[%clk 0:02:48.8]} 10. Bxc6+ {[%clk 0:02:34.1]} 10... bxc6 {[%clk 0:02:49.7]}
11. Nd2 {[%clk 0:02:34.5]} 11... Bb7 {[%clk 0:02:28.8]} 12. Nxc4 {[%clk
0:02:23]} 12... Qb5 {[%clk 0:02:02.2]} 13. Qb3 {[%clk 0:02:13.2]} 13... c5
{[%clk 0:01:56.9]} 14. Bxc5 {[%clk 0:01:20.3]} 14... Qc6 {[%clk 0:01:51.9]} 15.
e4 {[%clk 0:01:19.1]} 15... Qxc5 {[%clk 0:01:26]} 16. Qxb7 {[%clk 0:01:16.6]}
16... O-O {[%clk 0:01:26.2]} 17. e5 {[%clk 0:00:50.8]} 17... Nd5 {[%clk
0:01:20.2]} 18. Qb3 {[%clk 0:00:40.1]} 18... Rab8 {[%clk 0:01:12.8]} 19. Qc2
{[%clk 0:00:40.4]} 19... Nb4 {[%clk 0:01:11.6]} 20. Qe2 {[%clk 0:00:40.8]} 20...
Rfd8 {[%clk 0:01:10.3]} 21. Rfd1 {[%clk 0:00:40]} 21... Rxd1+ {[%clk 0:01:07.7]}
22. Rxd1 {[%clk 0:00:39.3]} 22... Nxa2 {[%clk 0:01:08.2]} 23. Rd7 {[%clk
0:00:32.5]} 23... h6 {[%clk 0:00:53.4]} 24. Qe4 {[%clk 0:00:26]} 24... Nb4
{[%clk 0:00:46.9]} 25. Ne3 {[%clk 0:00:21.4]} 25... a5 {[%clk 0:00:34.1]} 26. h4
{[%clk 0:00:19.1]} 26... a4 {[%clk 0:00:32.7]} 27. Qf4 {[%clk 0:00:18.8]} 27...
Rf8 {[%clk 0:00:27.8]} 28. Ng4 {[%clk 0:00:19.5]} 28... Nd5 {[%clk 0:00:24.9]}
29. Qd2 {[%clk 0:00:13]} 29... Qc6 {[%clk 0:00:22.3]} 30. Nxh6+ {[%clk
0:00:08.1]} 30... gxh6 {[%clk 0:00:19.7]} 31. Qxh6 {[%clk 0:00:09]} 31... Qc2
{[%clk 0:00:20.2]} 32. Qg5+ {[%clk 0:00:04.1]} 32... Qg6 {[%clk 0:00:20.1]} 33.
Qd2 {[%clk 0:00:04.5]} 33... Rb8 {[%clk 0:00:19.7]} 34. Kh2 {[%clk 0:00:04]}
34... Qf5 {[%clk 0:00:19.8]} 35. Kg2 {[%clk 0:00:03.1]} 35... Kf8 {[%clk
0:00:19.7]} 36. Qh6+ {[%clk 0:00:03.4]} 36... Ke8 {[%clk 0:00:18.9]} 37. Qh8+
{[%clk 0:00:03.1]} 37... Kxd7 {[%clk 0:00:19.4]} 38. Qxb8 {[%clk 0:00:04]} 38...
Qe4+ {[%clk 0:00:19.1]} 39. Kh2 {[%clk 0:00:04.4]} 39... Qe2 {[%clk 0:00:18.5]}
40. Kg2 {[%clk 0:00:03]} 40... Qe1 {[%clk 0:00:18.8]} 41. Qb5+ {[%clk
0:00:02.5]} 41... Kd8 {[%clk 0:00:17.1]} 42. Qxa4 {[%clk 0:00:03.4]} 42... Qxe5
{[%clk 0:00:16.8]} 43. Qc4 {[%clk 0:00:02.5]} 43... Qxb2 {[%clk 0:00:16.3]} 44.
h5 {[%clk 0:00:02.4]} 44... Ne3+ {[%clk 0:00:16.8]} 45. Kf3 {[%clk 0:00:02.9]}
45... Nxc4 {[%clk 0:00:16.8]} 0-1

[Event "*** Titled Tuesday Blitz"]
[Site "Chess.com"]
[Date "2020.11.03"]
[Round "4"]
[White "Philosopherrr"]
[Black "Zkid"]
[Result "1-0"]
[WhiteElo "2557"]
[BlackElo "2792"]
[TimeControl "180+1"]
[EndTime "10:42:14 PST"]
[Termination "Philosopherrr won by resignation"]

1. e4 {[%clk 0:03:00.9]} 1... e6 {[%clk 0:02:58.1]} 2. d4 {[%clk 0:03:00]} 2...
d5 {[%clk 0:02:58.2]} 3. Nc3 {[%clk 0:03:00.5]} 3... Bb4 {[%clk 0:02:57.3]} 4.
e5 {[%clk 0:02:58]} 4... c5 {[%clk 0:02:57.4]} 5. Bd2 {[%clk 0:02:58.5]} 5...
Ne7 {[%clk 0:02:56.6]} 6. a3 {[%clk 0:02:58.8]} 6... Bxc3 {[%clk 0:02:55.7]} 7.
Bxc3 {[%clk 0:02:59.7]} 7... cxd4 {[%clk 0:02:56.1]} 8. Qxd4 {[%clk 0:02:56.9]}
8... Nbc6 {[%clk 0:02:55.6]} 9. Qg4 {[%clk 0:02:56.4]} 9... O-O {[%clk
0:02:52.4]} 10. Nf3 {[%clk 0:02:54.4]} 10... Ng6 {[%clk 0:02:24.5]} 11. O-O-O
{[%clk 0:02:46.2]} 11... Qc7 {[%clk 0:02:15.7]} 12. Qg3 {[%clk 0:02:33.7]} 12...
f6 {[%clk 0:02:02.1]} 13. exf6 {[%clk 0:01:50.2]} 13... Qxg3 {[%clk 0:02:00.8]}
14. f7+ {[%clk 0:01:49]} 14... Rxf7 {[%clk 0:01:57]} 15. hxg3 {[%clk 0:01:48.5]}
15... h6 {[%clk 0:01:54.5]} 16. Bd3 {[%clk 0:01:47.5]} 16... Nf8 {[%clk
0:01:43.9]} 17. g4 {[%clk 0:01:47.6]} 17... e5 {[%clk 0:01:33.9]} 18. Nxe5
{[%clk 0:01:36.8]} 18... Nxe5 {[%clk 0:01:33.8]} 19. Bxe5 {[%clk 0:01:37.3]}
19... Rxf2 {[%clk 0:01:34.3]} 20. g5 {[%clk 0:01:25.5]} 20... hxg5 {[%clk
0:01:32.5]} 21. g3 {[%clk 0:01:07.7]} 21... Bf5 {[%clk 0:01:22.3]} 22. Bd4
{[%clk 0:01:04.7]} 22... Rf3 {[%clk 0:01:20]} 23. Bxf5 {[%clk 0:00:54.2]} 23...
Rxf5 {[%clk 0:01:20]} 24. Rde1 {[%clk 0:00:54.9]} 24... Kf7 {[%clk 0:01:08.5]}
25. Rh8 {[%clk 0:00:53.3]} 25... a6 {[%clk 0:00:39.4]} 26. Kd2 {[%clk 0:00:33]}
26... Rc8 {[%clk 0:00:30.2]} 27. b4 {[%clk 0:00:25.3]} 27... Rc4 {[%clk
0:00:24.5]} 28. Bc5 {[%clk 0:00:22.6]} 28... Ne6 {[%clk 0:00:23.2]} 29. Bg1
{[%clk 0:00:18.9]} 29... Nd4 {[%clk 0:00:19.5]} 30. Bxd4 {[%clk 0:00:15.1]}
30... Rxd4+ {[%clk 0:00:20.4]} 31. Kc1 {[%clk 0:00:15.2]} 31... Rf2 {[%clk
0:00:19.4]} 32. Ree8 {[%clk 0:00:14.9]} 32... Rc4 {[%clk 0:00:19.4]} 33. Rhf8+
{[%clk 0:00:14.4]} 33... Kg6 {[%clk 0:00:19.8]} 34. Rxf2 {[%clk 0:00:15]} 34...
Rc3 {[%clk 0:00:20.5]} 35. Rd8 {[%clk 0:00:14.3]} 35... Rxa3 {[%clk 0:00:19.8]}
36. Rxd5 {[%clk 0:00:14.7]} 36... Rxg3 {[%clk 0:00:20.4]} 37. Rd7 {[%clk
0:00:14.5]} 37... Re3 {[%clk 0:00:18.6]} 38. Rxb7 {[%clk 0:00:14.1]} 38... g4
{[%clk 0:00:17.6]} 39. Rg2 {[%clk 0:00:13.2]} 39... g3 {[%clk 0:00:17.2]} 40.
Kd2 {[%clk 0:00:13.6]} 40... Ra3 {[%clk 0:00:17.5]} 41. Re7 {[%clk 0:00:10.9]}
41... Kf5 {[%clk 0:00:16.5]} 42. Rxg7 {[%clk 0:00:10.8]} 42... Kf4 {[%clk
0:00:16.4]} 43. R7xg3 {[%clk 0:00:10.1]} 43... Rxg3 {[%clk 0:00:17.3]} 44. Rxg3
{[%clk 0:00:10.2]} 44... Kxg3 {[%clk 0:00:18.2]} 45. Ke3 {[%clk 0:00:10.7]}
45... Kg4 {[%clk 0:00:18.5]} 46. Ke4 {[%clk 0:00:10.9]} 46... Kg5 {[%clk
0:00:19.2]} 47. Ke5 {[%clk 0:00:11.3]} 47... Kg6 {[%clk 0:00:19.2]} 48. Ke6
{[%clk 0:00:10.3]} 48... Kg7 {[%clk 0:00:19.7]} 49. c4 {[%clk 0:00:09.8]} 49...
Kf8 {[%clk 0:00:19.6]} 50. Kd7 {[%clk 0:00:10.1]} 1-0

[Event "*** Titled Tuesday Blitz"]
[Site "Chess.com"]
[Date "2020.11.03"]
[Round "4"]
[White "AlexOstrovskiy"]
[Black "Anna_ChessMate"]
[Result "1-0"]
[WhiteElo "2795"]
[BlackElo "2529"]
[TimeControl "180+1"]
[EndTime "10:42:14 PST"]
[Termination "AlexOstrovskiy won on time"]

1. d4 {[%clk 0:02:54.9]} 1... d5 {[%clk 0:02:58.8]} 2. Bf4 {[%clk 0:02:55]} 2...
Nf6 {[%clk 0:02:58.3]} 3. e3 {[%clk 0:02:55.2]} 3... c5 {[%clk 0:02:58.8]} 4.
dxc5 {[%clk 0:02:52.6]} 4... Nc6 {[%clk 0:02:54.2]} 5. Bb5 {[%clk 0:02:52.2]}
5... e6 {[%clk 0:02:43.7]} 6. b4 {[%clk 0:02:51.6]} 6... Be7 {[%clk 0:02:34]} 7.
c3 {[%clk 0:02:50.8]} 7... O-O {[%clk 0:02:34.1]} 8. Nd2 {[%clk 0:02:49.2]} 8...
Bd7 {[%clk 0:02:10.8]} 9. a4 {[%clk 0:02:44.7]} 9... b6 {[%clk 0:02:09.6]} 10.
Bxc6 {[%clk 0:02:42.3]} 10... Bxc6 {[%clk 0:02:09.3]} 11. b5 {[%clk 0:02:42.3]}
11... Be8 {[%clk 0:02:06.5]} 12. c6 {[%clk 0:02:41.8]} 12... a6 {[%clk
0:02:06.7]} 13. Ngf3 {[%clk 0:02:39.2]} 13... Kh8 {[%clk 0:01:49.3]} 14. O-O
{[%clk 0:02:37.6]} 14... Ng8 {[%clk 0:01:49.8]} 15. Qc2 {[%clk 0:02:27.4]} 15...
f6 {[%clk 0:01:49.5]} 16. Bg3 {[%clk 0:02:21.9]} 16... e5 {[%clk 0:01:48.8]} 17.
Rfd1 {[%clk 0:02:08.8]} 17... Qc8 {[%clk 0:01:27.3]} 18. e4 {[%clk 0:02:01.9]}
18... Bg6 {[%clk 0:01:24.9]} 19. Nh4 {[%clk 0:02:01.6]} 19... Bf7 {[%clk
0:01:21.6]} 20. Nf5 {[%clk 0:01:46]} 20... Rd8 {[%clk 0:01:02.2]} 21. Nxe7
{[%clk 0:01:41.8]} 21... Nxe7 {[%clk 0:01:03.1]} 22. exd5 {[%clk 0:01:40.3]}
22... Nxd5 {[%clk 0:01:02.4]} 23. c4 {[%clk 0:01:25.7]} 23... Ne7 {[%clk
0:00:55]} 24. f3 {[%clk 0:01:10.8]} 24... Nf5 {[%clk 0:00:54.1]} 25. Bf2 {[%clk
0:01:11.2]} 25... Nd4 {[%clk 0:00:54.1]} 26. Qb2 {[%clk 0:01:01.5]} 26... Ne2+
{[%clk 0:00:39.5]} 27. Kf1 {[%clk 0:00:48.9]} 27... Nd4 {[%clk 0:00:33.7]} 28.
Rac1 {[%clk 0:00:45.4]} 28... Qf5 {[%clk 0:00:25.8]} 29. Ne4 {[%clk 0:00:41.1]}
29... axb5 {[%clk 0:00:21.4]} 30. axb5 {[%clk 0:00:40.5]} 30... h5 {[%clk
0:00:17.9]} 31. Bxd4 {[%clk 0:00:36.3]} 31... exd4 {[%clk 0:00:12.5]} 32. Rxd4
{[%clk 0:00:36.6]} 32... h4 {[%clk 0:00:07.7]} 33. Nd6 {[%clk 0:00:32.8]} 33...
Rxd6 {[%clk 0:00:07.8]} 34. Rxd6 {[%clk 0:00:33.7]} 34... h3 {[%clk 0:00:08.7]}
35. Rd4 {[%clk 0:00:24.4]} 35... hxg2+ {[%clk 0:00:06.5]} 36. Kxg2 {[%clk
0:00:25.3]} 36... Be6 {[%clk 0:00:04.9]} 37. Qf2 {[%clk 0:00:13.1]} 37... Kg8
{[%clk 0:00:01.8]} 38. Rcd1 {[%clk 0:00:11.1]} 38... Kf7 {[%clk 0:00:01.6]} 39.
c7 {[%clk 0:00:09.4]} 39... Rc8 {[%clk 0:00:01.2]} 40. Qg3 {[%clk 0:00:09.1]}
1-0

[Event "*** Titled Tuesday Blitz"]
[Site "Chess.com"]
[Date "2020.11.03"]
[Round "4"]
[White "lamomiablanca"]
[Black "keepitcoming"]
[Result "0-1"]
[WhiteElo "2262"]
[BlackElo "2537"]
[TimeControl "180+1"]
[EndTime "10:42:15 PST"]
[Termination "keepitcoming won by resignation"]

1. e4 {[%clk 0:03:00.9]} 1... c6 {[%clk 0:02:59.9]} 2. d4 {[%clk 0:02:59.6]}
2... d5 {[%clk 0:03:00.8]} 3. Nc3 {[%clk 0:02:59.5]} 3... dxe4 {[%clk
0:03:00.7]} 4. Nxe4 {[%clk 0:02:59.7]} 4... Nf6 {[%clk 0:03:01.6]} 5. Ng3 {[%clk
0:02:52.5]} 5... h5 {[%clk 0:03:01.2]} 6. Bc4 {[%clk 0:02:41.8]} 6... h4 {[%clk
0:03:02.1]} 7. N3e2 {[%clk 0:02:41.7]} 7... Bg4 {[%clk 0:02:54.8]} 8. h3 {[%clk
0:02:40.9]} 8... Bf5 {[%clk 0:02:53.4]} 9. Nf3 {[%clk 0:02:39.3]} 9... e6 {[%clk
0:02:50.1]} 10. Bf4 {[%clk 0:02:33.4]} 10... Bd6 {[%clk 0:02:49.2]} 11. c3
{[%clk 0:02:28.8]} 11... Qc7 {[%clk 0:02:46.3]} 12. Bxd6 {[%clk 0:02:24.8]}
12... Qxd6 {[%clk 0:02:47.2]} 13. Qd2 {[%clk 0:02:24.5]} 13... Ne4 {[%clk
0:02:35.9]} 14. Qf4 {[%clk 0:02:23.3]} 14... Qxf4 {[%clk 0:02:25.6]} 15. Nxf4
{[%clk 0:02:22.8]} 15... Nd7 {[%clk 0:02:20.6]} 16. Nd2 {[%clk 0:02:10.2]} 16...
O-O-O {[%clk 0:02:17.3]} 17. Nxe4 {[%clk 0:02:09.4]} 17... Bxe4 {[%clk
0:02:18.2]} 18. O-O {[%clk 0:02:03.9]} 18... g5 {[%clk 0:02:13.8]} 19. Ne2
{[%clk 0:01:58.6]} 19... c5 {[%clk 0:02:06.3]} 20. Rad1 {[%clk 0:01:50.9]} 20...
Nb6 {[%clk 0:01:57.8]} 21. Bb3 {[%clk 0:01:49.1]} 21... c4 {[%clk 0:01:57.1]}
22. f3 {[%clk 0:01:17.8]} 22... Bg6 {[%clk 0:01:44.5]} 23. f4 {[%clk 0:01:14]}
23... cxb3 {[%clk 0:01:41.8]} 24. axb3 {[%clk 0:01:14.1]} 24... f6 {[%clk
0:01:34.5]} 25. fxg5 {[%clk 0:01:08.5]} 25... fxg5 {[%clk 0:01:35.4]} 26. Rf6
{[%clk 0:01:07]} 26... Bf5 {[%clk 0:01:32.2]} 27. c4 {[%clk 0:01:04.4]} 27...
Rdf8 {[%clk 0:01:30.7]} 28. Rxf8+ {[%clk 0:01:03]} 28... Rxf8 {[%clk 0:01:31.6]}
29. Nc3 {[%clk 0:01:01.7]} 29... Bc2 {[%clk 0:01:27.1]} 30. Re1 {[%clk
0:01:00.2]} 30... Bxb3 {[%clk 0:01:26.5]} 31. c5 {[%clk 0:00:59.1]} 31... Nd5
{[%clk 0:01:09.7]} 32. Ne4 {[%clk 0:00:58.8]} 32... Rg8 {[%clk 0:00:55.4]} 33.
Nd6+ {[%clk 0:00:48]} 33... Kd7 {[%clk 0:00:46.1]} 34. Nxb7 {[%clk 0:00:47.5]}
34... Nf4 {[%clk 0:00:41.3]} 35. c6+ {[%clk 0:00:44.2]} 35... Kxc6 {[%clk
0:00:39]} 36. Na5+ {[%clk 0:00:44.3]} 36... Kd5 {[%clk 0:00:32.4]} 37. Nxb3
{[%clk 0:00:44.3]} 37... Nd3 {[%clk 0:00:27.6]} 38. Re2 {[%clk 0:00:39.2]} 38...
Rb8 {[%clk 0:00:18.7]} 39. Nc5 {[%clk 0:00:24]} 39... Rxb2 {[%clk 0:00:13.2]}
40. Rxe6 {[%clk 0:00:23.9]} 40... Nxc5 {[%clk 0:00:12.4]} 41. Re5+ {[%clk
0:00:19.3]} 41... Kxd4 {[%clk 0:00:12.5]} 42. Rxg5 {[%clk 0:00:19]} 42... a5
{[%clk 0:00:12.4]} 43. Rg4+ {[%clk 0:00:18.4]} 43... Ne4 {[%clk 0:00:12.6]} 44.
Rxh4 {[%clk 0:00:18]} 44... a4 {[%clk 0:00:13]} 45. Rh8 {[%clk 0:00:18.4]} 45...
a3 {[%clk 0:00:13.2]} 46. Ra8 {[%clk 0:00:19.2]} 46... a2 {[%clk 0:00:13.1]} 47.
Kh2 {[%clk 0:00:19.7]} 47... Nc3 {[%clk 0:00:13.2]} 48. h4 {[%clk 0:00:18.4]}
48... Rb1 {[%clk 0:00:12.5]} 49. Rd8+ {[%clk 0:00:17.1]} 49... Nd5 {[%clk
0:00:11.7]} 0-1

[Event "*** Titled Tuesday Blitz"]
[Site "Chess.com"]
[Date "2020.11.03"]
[Round "4"]
[White "GoltsevDmitry2000"]
[Black "ural58"]
[Result "1/2-1/2"]
[WhiteElo "2659"]
[BlackElo "2362"]
[TimeControl "180+1"]
[EndTime "10:42:15 PST"]
[Termination "Game drawn by repetition"]

1. e4 {[%clk 0:02:53.9]} 1... d5 {[%clk 0:02:58.6]} 2. exd5 {[%clk 0:02:52.5]}
2... Qxd5 {[%clk 0:02:58.7]} 3. Nf3 {[%clk 0:02:52.1]} 3... Bg4 {[%clk 0:02:56]}
4. Be2 {[%clk 0:02:51.7]} 4... Nc6 {[%clk 0:02:56.2]} 5. Nc3 {[%clk 0:02:43.9]}
5... Qd7 {[%clk 0:02:55.2]} 6. h3 {[%clk 0:02:43.7]} 6... Bh5 {[%clk 0:02:52]}
7. O-O {[%clk 0:02:43.6]} 7... O-O-O {[%clk 0:02:51.6]} 8. d3 {[%clk 0:02:43.5]}
8... Nf6 {[%clk 0:02:49.5]} 9. Bf4 {[%clk 0:02:43.1]} 9... e6 {[%clk 0:02:46.1]}
10. Ne5 {[%clk 0:02:41.5]} 10... Bxe2 {[%clk 0:02:42]} 11. Qxe2 {[%clk
0:02:37.7]} 11... Nxe5 {[%clk 0:02:42.2]} 12. Bxe5 {[%clk 0:02:37.5]} 12... Bd6
{[%clk 0:02:41.6]} 13. f4 {[%clk 0:02:30.3]} 13... Qc6 {[%clk 0:02:37.8]} 14.
Rae1 {[%clk 0:02:27.4]} 14... a6 {[%clk 0:02:37.2]} 15. Bxf6 {[%clk 0:02:23]}
15... gxf6 {[%clk 0:02:37.1]} 16. Ne4 {[%clk 0:02:23.9]} 16... f5 {[%clk
0:02:10.3]} 17. Ng5 {[%clk 0:02:20.3]} 17... Qd7 {[%clk 0:02:10.2]} 18. Qh5
{[%clk 0:02:18.3]} 18... Rdf8 {[%clk 0:02:04.8]} 19. c3 {[%clk 0:02:14.9]} 19...
h6 {[%clk 0:02:01.3]} 20. Nf3 {[%clk 0:02:14.6]} 20... Bxf4 {[%clk 0:01:59.8]}
21. d4 {[%clk 0:02:14.7]} 21... Bd6 {[%clk 0:01:59.4]} 22. Nd2 {[%clk
0:02:12.3]} 22... Kb8 {[%clk 0:01:56.5]} 23. Nc4 {[%clk 0:02:11.1]} 23... Qc6
{[%clk 0:01:43.8]} 24. Ne3 {[%clk 0:02:08.8]} 24... Bg3 {[%clk 0:01:39.9]} 25.
d5 {[%clk 0:02:03.8]} 25... exd5 {[%clk 0:01:27.8]} 26. Re2 {[%clk 0:01:57.3]}
26... d4 {[%clk 0:01:06.7]} 27. cxd4 {[%clk 0:01:55.4]} 27... f4 {[%clk
0:01:05.5]} 28. Nf5 {[%clk 0:01:52.6]} 28... Re8 {[%clk 0:00:48.2]} 29. Re5
{[%clk 0:01:28.2]} 29... Rxe5 {[%clk 0:00:47.3]} 30. dxe5 {[%clk 0:01:29.1]}
30... Qc5+ {[%clk 0:00:45]} 31. Kh1 {[%clk 0:01:29.3]} 31... Qc4 {[%clk
0:00:30.8]} 32. Rd1 {[%clk 0:01:26]} 32... Qxa2 {[%clk 0:00:23.7]} 33. b4 {[%clk
0:01:19.3]} 33... Qb3 {[%clk 0:00:23.1]} 34. Rf1 {[%clk 0:01:17]} 34... Qc4
{[%clk 0:00:22.2]} 35. Rd1 {[%clk 0:01:14]} 35... Qb3 {[%clk 0:00:20.8]} 36. Rc1
{[%clk 0:01:12.4]} 36... Qxb4 {[%clk 0:00:20.5]} 37. Qxf7 {[%clk 0:01:11.7]}
37... Rc8 {[%clk 0:00:20.5]} 38. Ne7 {[%clk 0:01:10.2]} 38... Qd2 {[%clk
0:00:20.3]} 39. Rb1 {[%clk 0:01:00.3]} 39... Qd7 {[%clk 0:00:16.2]} 40. Qb3
{[%clk 0:00:52.1]} 40... Qb5 {[%clk 0:00:13.1]} 41. Qxb5 {[%clk 0:00:49.2]}
41... axb5 {[%clk 0:00:14]} 42. Nxc8 {[%clk 0:00:49.7]} 42... Kxc8 {[%clk
0:00:14.9]} 43. Rxb5 {[%clk 0:00:50.2]} 43... c6 {[%clk 0:00:15.2]} 44. Ra5
{[%clk 0:00:49.7]} 44... Kd7 {[%clk 0:00:15]} 45. Ra7 {[%clk 0:00:48.6]} 45...
Ke6 {[%clk 0:00:14.9]} 46. Rxb7 {[%clk 0:00:48.6]} 46... Kxe5 {[%clk 0:00:15.8]}
47. Rh7 {[%clk 0:00:49]} 47... c5 {[%clk 0:00:15.8]} 48. Rxh6 {[%clk 0:00:49.5]}
48... c4 {[%clk 0:00:16.2]} 49. Rc6 {[%clk 0:00:49.8]} 49... Kd4 {[%clk
0:00:16.2]} 50. Kg1 {[%clk 0:00:50.1]} 50... c3 {[%clk 0:00:16.5]} 51. Kf1
{[%clk 0:00:50.2]} 51... Kd3 {[%clk 0:00:17.4]} 52. Rd6+ {[%clk 0:00:50.3]}
52... Ke3 {[%clk 0:00:17.3]} 53. Re6+ {[%clk 0:00:50.4]} 53... Kd2 {[%clk
0:00:17.4]} 54. Rd6+ {[%clk 0:00:49.8]} 54... Ke3 {[%clk 0:00:17.7]} 55. Re6+
{[%clk 0:00:42.6]} 55... Kd2 {[%clk 0:00:17.3]} 56. Rd6+ {[%clk 0:00:42.8]}
56... Ke3 {[%clk 0:00:17]} 1/2-1/2

[Event "*** Titled Tuesday Blitz"]
[Site "Chess.com"]
[Date "2020.11.03"]
[Round "4"]
[White "Promacherr"]
[Black "dropstoneDP"]
[Result "1-0"]
[WhiteElo "2697"]
[BlackElo "2897"]
[TimeControl "180+1"]
[EndTime "10:42:16 PST"]
[Termination "Promacherr won on time"]

1. d4 {[%clk 0:03:00.5]} 1... Nf6 {[%clk 0:02:57.1]} 2. Nf3 {[%clk 0:03:00.6]}
2... d5 {[%clk 0:02:57.2]} 3. Bf4 {[%clk 0:03:00.2]} 3... c5 {[%clk 0:02:56.3]}
4. e3 {[%clk 0:03:00.6]} 4... Nc6 {[%clk 0:02:56.6]} 5. Nbd2 {[%clk 0:03:00.9]}
5... cxd4 {[%clk 0:02:52.5]} 6. exd4 {[%clk 0:03:01.8]} 6... Qb6 {[%clk
0:02:53.2]} 7. Nb3 {[%clk 0:03:01.7]} 7... Bf5 {[%clk 0:02:53.5]} 8. a4 {[%clk
0:03:01.5]} 8... e6 {[%clk 0:02:23.5]} 9. a5 {[%clk 0:03:01.3]} 9... Bb4+ {[%clk
0:02:08.3]} 10. c3 {[%clk 0:02:14.4]} 10... Bxa5 {[%clk 0:02:06.9]} 11. Ne5
{[%clk 0:02:14.3]} 11... g5 {[%clk 0:00:45.5]} 12. Be3 {[%clk 0:02:03.7]} 12...
Ne4 {[%clk 0:00:38.5]} 13. Nxc6 {[%clk 0:02:01.5]} 13... Nxc3 {[%clk 0:00:30.4]}
14. Qd2 {[%clk 0:01:59.2]} 14... bxc6 {[%clk 0:00:25.4]} 15. bxc3 {[%clk
0:01:29.1]} 15... Qxb3 {[%clk 0:00:23.2]} 16. Rxa5 {[%clk 0:01:28.9]} 16... Qb1+
{[%clk 0:00:16.3]} 17. Qc1 {[%clk 0:01:28.9]} 17... Rb8 {[%clk 0:00:12.9]} 18.
Ra1 {[%clk 0:01:20.3]} 18... Qe4 {[%clk 0:00:10.5]} 19. f3 {[%clk 0:01:11.8]}
19... Qh4+ {[%clk 0:00:10.5]} 20. g3 {[%clk 0:01:09.5]} 20... Qh6 {[%clk
0:00:09.1]} 21. Bxg5 {[%clk 0:01:02.4]} 21... Qg6 {[%clk 0:00:09.4]} 22. Bf4
{[%clk 0:01:02.7]} 22... Rb3 {[%clk 0:00:02.8]} 23. Be2 {[%clk 0:00:39.6]} 23...
Bd3 {[%clk 0:00:02.8]} 24. Qd2 {[%clk 0:00:20.5]} 24... Bxe2 {[%clk 0:00:02.9]}
25. Qxe2 {[%clk 0:00:20.3]} 25... Rxc3 {[%clk 0:00:02.9]} 26. O-O {[%clk
0:00:20.5]} 26... O-O {[%clk 0:00:02.6]} 27. Rxa7 {[%clk 0:00:20.4]} 27... Rc2
{[%clk 0:00:02]} 28. Qe5 {[%clk 0:00:18.4]} 28... Rc3 {[%clk 0:00:01.4]} 29. Qg5
{[%clk 0:00:16]} 29... Re8 {[%clk 0:00:01.7]} 30. Qxg6+ {[%clk 0:00:16]} 30...
hxg6 {[%clk 0:00:02.6]} 31. Be5 {[%clk 0:00:16.3]} 31... g5 {[%clk 0:00:01.6]}
32. f4 {[%clk 0:00:15.7]} 32... g4 {[%clk 0:00:01.6]} 33. f5 {[%clk 0:00:16.1]}
33... f6 {[%clk 0:00:01.7]} 34. Bxf6 {[%clk 0:00:14.3]} 34... exf5 {[%clk
0:00:02.6]} 35. Be5 {[%clk 0:00:14.8]} 35... Rf8 {[%clk 0:00:02.2]} 36. Rg7+
{[%clk 0:00:14.5]} 36... Kh8 {[%clk 0:00:02.9]} 37. Rc7+ {[%clk 0:00:14.5]}
37... Kg8 {[%clk 0:00:03.1]} 38. Rg7+ {[%clk 0:00:13.5]} 38... Kh8 {[%clk
0:00:03.2]} 39. Rxg4+ {[%clk 0:00:12.4]} 39... Kh7 {[%clk 0:00:03.8]} 40. Rg7+
{[%clk 0:00:13.1]} 40... Kh6 {[%clk 0:00:04.3]} 41. Rf4 {[%clk 0:00:13]} 41...
Rc1+ {[%clk 0:00:04.6]} 42. Kg2 {[%clk 0:00:13.2]} 42... Rc2+ {[%clk 0:00:05.3]}
43. Kh3 {[%clk 0:00:13.6]} 1-0